fUST/lending_fUST_20250828
["ID","MTS","AMOUNT","RATE_DAILY","PERIOD"]
[381712991,1756317052146,-480.0,0.00022465,2]
[381712993,1756317052160,-559.96,0.00022465,2]
[381712995,1756317052172,-480.0,0.00022465,2]
[381712997,1756317052182,-480.0,0.00022465,2]
[381712999,1756317052192,-480.0,0.00022465,2]
[381713002,1756317052202,-480.0,0.00022465,2]
[381713004,1756317052215,-480.0,0.00022465,2]
[381713005,1756317052225,-480.0,0.00022465,2]
[381713007,1756317052235,-480.0,0.00022465,2]
[381713009,1756317052244,-480.0,0.00022465,2]
[381713011,1756317052254,-480.0,0.00022465,2]
[381713013,1756317052263,-480.0,0.00022465,2]
[381713015,1756317052273,-480.0,0.00022465,2]
[381713017,1756317052282,-480.0,0.00022465,2]
[381713019,1756317052292,-480.0,0.00022465,2]
[381713021,1756317052301,-480.0,0.00022465,2]
[381713023,1756317052311,-480.0,0.00022465,2]
[381713025,1756317052321,-406.56828351,0.00022465,2]
[381713027,1756317052330,-480.0,0.00022465,2]
[381713029,1756317052339,-480.0,0.00022465,2]
[381713031,1756317052349,-480.0,0.00022465,2]
[381713033,1756317052358,-548.2,0.00022465,2]
[381713035,1756317052367,-480.0,0.00022465,2]
[381713037,1756317052377,-341.22691864,0.00022465,2]
[381713039,1756317052387,-490.49,0.00022465,2]
[381713041,1756317052397,-480.0,0.00022465,2]
[381713043,1756317052407,-480.0,0.00022465,2]
[381713045,1756317052416,-480.0,0.00022465,2]
[381713047,1756317052425,-480.0,0.00022465,2]
[381713049,1756317052435,-480.0,0.00022465,2]
[381713051,1756317052444,-480.0,0.00022465,2]
[381713053,1756317052454,-552.55,0.00022465,2]
[381713056,1756317052464,-285.64110379,0.00022465,2]
[381713058,1756317052473,-480.0,0.00022465,2]
[381713060,1756317052483,-480.0,0.00022465,2]
[381713062,1756317052492,-470.18249791,0.00022465,2]
[381713064,1756317052502,-695.04,0.00022465,2]
[381713066,1756317052512,-480.0,0.00022465,2]
[381713068,1756317052521,-498.94,0.00022465,2]
[381713070,1756317052531,-5052.09,0.00022465,2]
[381713072,1756317052541,-480.0,0.00022465,2]
[381713074,1756317052550,-480.0,0.00022465,2]
[381713076,1756317052559,-480.0,0.00022465,2]
[381713078,1756317052569,-480.0,0.00022465,2]
[381713080,1756317052579,-785.3,0.00022465,2]
[381713082,1756317052587,-503.1,0.00022465,2]
[381713084,1756317052597,-480.0,0.00022465,2]
[381713086,1756317052606,-480.0,0.00022465,2]
[381713088,1756317052615,-480.0,0.00022465,2]
[381713090,1756317052624,-717.29,0.00022465,2]
[381713092,1756317052634,-480.0,0.00022465,2]
[381713094,1756317052644,-1139.99,0.00022465,2]
[381713096,1756317052653,-480.0,0.00022465,2]
[381713098,1756317052663,-480.0,0.00022465,2]
[381713100,1756317052672,-2881.12,0.00022465,2]
[381713102,1756317052681,-604.76,0.00022465,2]
[381713104,1756317052691,-480.0,0.00022465,2]
[381713106,1756317052701,-480.0,0.00022465,2]
[381713107,1756317052710,-480.0,0.00022465,2]
[381713109,1756317052720,-480.0,0.00022465,2]
[381713112,1756317052731,-480.0,0.00022465,2]
[381713114,1756317052740,-922.9,0.00022465,2]
[381713116,1756317052750,-480.0,0.00022465,2]
[381713118,1756317052760,-480.0,0.00022465,2]
[381713120,1756317052769,-1070.32,0.00022465,2]
[381713122,1756317052779,-480.0,0.00022465,2]
[381713124,1756317052788,-480.0,0.00022465,2]
[381713126,1756317052798,-480.0,0.00022465,2]
[381713128,1756317052808,-648.18,0.00022465,2]
[381713130,1756317052818,-480.0,0.00022465,2]
[381713132,1756317052827,-606.27,0.00022465,2]
[381713134,1756317052837,-248.01080789,0.00022465,2]
[381713136,1756317052847,-480.0,0.00022465,2]
[381713138,1756317052856,-480.0,0.00022465,2]
[381713140,1756317052866,-480.0,0.00022465,2]
[381713142,1756317052875,-480.0,0.00022465,2]
[381713144,1756317052885,-738.58,0.00022465,2]
[381713146,1756317052894,-480.0,0.00022465,2]
[381713148,1756317052904,-512.76,0.00022465,2]
[381713150,1756317052913,-480.0,0.00022465,2]
[381713152,1756317052928,-400.0,0.00022465,2]
[381713154,1756317052937,-480.0,0.00022465,2]
[381713156,1756317052947,-480.0,0.00022465,2]
[381713158,1756317052956,-923.03,0.00022465,2]
[381713160,1756317052967,-480.0,0.00022465,2]
[381713162,1756317052976,-511.4,0.00022465,2]
[381713164,1756317052987,-1634.23,0.00022465,2]
[381713166,1756317052998,-480.0,0.00022465,2]
[381713168,1756317053007,-480.0,0.00022465,2]
[381713170,1756317053017,-480.0,0.00022465,2]
[381713172,1756317053026,-480.0,0.00022465,2]
[381713174,1756317053035,-480.0,0.00022465,2]
[381713176,1756317053044,-480.0,0.00022465,2]
[381713178,1756317053053,-480.0,0.00022465,2]
[381713180,1756317053063,-480.0,0.00022465,2]
[381713182,1756317053072,-500.0,0.00022465,2]
[381713184,1756317053081,-480.0,0.00022465,2]
[381713185,1756317053091,-480.0,0.00022465,2]
[381713186,1756317053101,-671.0,0.00022465,2]
[381713187,1756317053111,-151.0,0.00022465,7]
[381713188,1756317053120,-480.0,0.00022465,2]
[381713189,1756317053129,-185.85512,0.00022465,7]
[381713190,1756317053139,-480.0,0.00022465,2]
[381713191,1756317053150,-480.0,0.00022465,2]
[381713193,1756317053159,-480.0,0.00022465,2]
[381713195,1756317053168,-490.62,0.00022465,2]
[381713197,1756317053177,-480.0,0.00022465,2]
[381713199,1756317053187,-480.0,0.00022465,2]
[381713201,1756317053196,-480.0,0.00022465,2]
[381713203,1756317053205,-480.0,0.00022465,2]
[381713205,1756317053215,-480.0,0.00022465,2]
[381713207,1756317053224,-499.98,0.00022465,2]
[381713209,1756317053233,-480.0,0.00022465,2]
[381713211,1756317053243,-480.0,0.00022465,2]
[381713213,1756317053253,-480.0,0.00022465,2]
[381713215,1756317053263,-151.0,0.00022465,7]
[381713217,1756317053272,-480.0,0.00022465,2]
[381713219,1756317053282,-528.66,0.00022465,2]
[381713221,1756317053292,-480.0,0.00022465,2]
[381713223,1756317053301,-1130.96,0.00022465,2]
[381713225,1756317053311,-480.0,0.00022465,2]
[381713227,1756317053321,-480.0,0.00022465,2]
[381713229,1756317053331,-151.0,0.00022465,7]
[381713231,1756317053340,-480.0,0.00022465,2]
[381713233,1756317053350,-4782.65,0.00022465,2]
[381713235,1756317053359,-151.0,0.00022465,7]
[381713237,1756317053369,-639.09,0.00022465,2]
[381713240,1756317053380,-480.0,0.00022465,2]
[381713241,1756317053390,-480.0,0.00022465,2]
[381713243,1756317053399,-592.8,0.00022465,2]
[381713246,1756317053408,-480.0,0.00022465,2]
[381713247,1756317053418,-480.0,0.00022465,2]
[381713250,1756317053428,-480.0,0.00022465,2]
[381713252,1756317053438,-480.0,0.00022465,2]
[381713254,1756317053448,-843.63,0.00022465,2]
[381713256,1756317053458,-480.0,0.00022465,2]
[381713258,1756317053467,-589.08852748,0.00022465,2]
[381713260,1756317053476,-996.03,0.00022465,2]
[381713262,1756317053486,-480.0,0.00022465,2]
[381713264,1756317053495,-480.0,0.00022465,2]
[381713266,1756317053505,-710.84,0.00022465,2]
[381713268,1756317053514,-480.0,0.00022465,2]
[381713270,1756317053523,-480.0,0.00022465,2]
[381713272,1756317053532,-480.0,0.00022465,2]
[381713274,1756317053542,-480.0,0.00022465,2]
[381713276,1756317053551,-480.0,0.00022465,2]
[381713278,1756317053560,-711.04,0.00022465,2]
[381713280,1756317053570,-480.0,0.00022465,2]
[381713282,1756317053579,-480.0,0.00022465,2]
[381713284,1756317053588,-958.28,0.00022465,2]
[381713286,1756317053598,-480.0,0.00022465,2]
[381713288,1756317053608,-480.0,0.00022465,2]
[381713290,1756317053617,-1039.97,0.00022465,2]
[381713292,1756317053627,-480.0,0.00022465,2]
[381713294,1756317053636,-519.95,0.00022465,2]
[381713296,1756317053645,-511.37,0.00022465,2]
[381713298,1756317053654,-480.0,0.00022465,2]
[381713300,1756317053664,-480.0,0.00022465,2]
[381713302,1756317053674,-480.0,0.00022465,2]
[381713304,1756317053683,-480.0,0.00022465,2]
[381713306,1756317053692,-480.0,0.00022465,2]
[381713308,1756317053702,-482.77,0.00022465,2]
[381713310,1756317053711,-610.47,0.00022465,2]
[381713312,1756317053721,-480.0,0.00022465,2]
[381713314,1756317053730,-480.0,0.00022465,2]
[381713317,1756317053740,-480.0,0.00022465,2]
[381713319,1756317053751,-653.92,0.00022465,2]
[381713321,1756317053760,-480.0,0.00022465,2]
[381713323,1756317053769,-480.0,0.00022465,2]
[381713325,1756317053778,-480.0,0.00022465,2]
[381713327,1756317053788,-480.0,0.00022465,2]
[381713329,1756317053798,-480.0,0.00022465,2]
[381713331,1756317053807,-480.0,0.00022465,2]
[381713333,1756317053817,-376.32220735,0.00022465,2]
[381713335,1756317053826,-480.0,0.00022465,2]
[381713337,1756317053836,-1224.96,0.00022465,2]
[381713339,1756317053845,-480.0,0.00022465,2]
[381713341,1756317053855,-480.0,0.00022465,2]
[381713343,1756317053864,-480.0,0.00022465,2]
[381713345,1756317053874,-480.0,0.00022465,2]
[381713347,1756317053883,-480.0,0.00022465,2]
[381713349,1756317053892,-736.23,0.00022465,2]
[381713351,1756317053902,-480.0,0.00022465,2]
[381713353,1756317053911,-1445.71,0.00022465,2]
[381713355,1756317053923,-1037.95,0.00022465,2]
[381713357,1756317053933,-511.59,0.00022465,2]
[381713359,1756317053943,-480.0,0.00022465,2]
[381713361,1756317053952,-1001.79,0.00022465,2]
[381713363,1756317053963,-480.0,0.00022465,2]
[381713365,1756317053972,-480.0,0.00022465,2]
[381713367,1756317053982,-480.0,0.00022465,2]
[381713369,1756317053991,-480.0,0.00022465,2]
[381713371,1756317054003,-608.47,0.00022465,2]
[381713373,1756317054012,-480.0,0.00022465,2]
[381713375,1756317054021,-480.0,0.00022465,2]
[381713377,1756317054031,-526.96,0.00022465,2]
[381713379,1756317054040,-673.95,0.00022465,2]
[381713381,1756317054050,-480.0,0.00022465,2]
[381713383,1756317054059,-3457.5,0.00022465,2]
[381713385,1756317054068,-630.42,0.00022465,2]
[381713387,1756317054078,-480.0,0.00022465,2]
[381713389,1756317054087,-480.0,0.00022465,2]
[381713391,1756317054096,-480.0,0.00022465,2]
[381713393,1756317054106,-1538.01,0.00022465,2]
[381713395,1756317054117,-480.0,0.00022465,2]
[381713397,1756317054126,-480.0,0.00022465,2]
[381713399,1756317054136,-480.0,0.00022465,2]
[381713401,1756317054146,-480.0,0.00022465,2]
[381713403,1756317054157,-480.0,0.00022465,2]
[381713405,1756317054166,-524.39,0.00022465,2]
[381713407,1756317054176,-480.0,0.00022465,2]
[381713409,1756317054185,-480.0,0.00022465,2]
[381713411,1756317054194,-480.0,0.00022465,2]
[381713413,1756317054204,-3251.6,0.00022465,2]
[381713416,1756317054214,-480.0,0.00022465,2]
[381713418,1756317054223,-480.0,0.00022465,2]
[381713420,1756317054233,-499.55,0.00022465,2]
[381713422,1756317054242,-480.0,0.00022465,2]
[381713424,1756317054251,-480.0,0.00022465,2]
[381713426,1756317054260,-584.58,0.00022465,2]
[381713428,1756317054269,-480.0,0.00022465,2]
[381713430,1756317054279,-480.0,0.00022465,2]
[381713432,1756317054288,-480.0,0.00022465,2]
[381713434,1756317054298,-480.0,0.00022465,2]
[381713436,1756317054307,-504.95,0.00022465,2]
[381713438,1756317054317,-480.0,0.00022465,2]
[381713440,1756317054326,-480.0,0.00022465,2]
[381713442,1756317054335,-480.0,0.00022465,2]
[381713444,1756317054344,-1050.21,0.00022465,2]
[381713446,1756317054354,-1318.38,0.00022465,2]
[381713448,1756317054363,-480.0,0.00022465,2]
[381713450,1756317054373,-655.98,0.00022465,2]
[381713456,1756317054425,-1404.91,0.00022465,2]
[381713458,1756317054435,-2797.72,0.00022465,2]
[381713460,1756317054444,-480.0,0.00022465,2]
[381713462,1756317054454,-480.0,0.00022465,2]
[381713464,1756317054463,-480.0,0.00022465,2]
[381713466,1756317054473,-480.0,0.00022465,2]
[381713468,1756317054482,-341.51762784,0.00022465,2]
[381713471,1756317054491,-1827.79,0.00022465,2]
[381713473,1756317054500,-480.0,0.00022465,2]
[381713474,1756317054510,-480.0,0.00022465,2]
[381713477,1756317054519,-480.0,0.00022465,2]
[381713479,1756317054528,-1078.58,0.00022465,2]
[381713481,1756317054538,-1579.67,0.00022465,2]
[381713483,1756317054547,-480.0,0.00022465,2]
[381713485,1756317054556,-480.0,0.00022465,2]
[381713487,1756317054565,-480.0,0.00022465,2]
[381713489,1756317054574,-480.0,0.00022465,2]
[381713491,1756317054583,-3592.09,0.00022465,2]
[381713493,1756317054592,-480.0,0.00022465,2]
[381713495,1756317054602,-1418.8,0.00022465,2]
[381713497,1756317054611,-1116.65,0.00022465,2]
[381713499,1756317054620,-480.0,0.00022465,2]
[381713501,1756317054629,-480.0,0.00022465,2]
[381713503,1756317054640,-480.0,0.00022465,2]
[381713505,1756317054651,-684.35,0.00022465,2]
[381713507,1756317054660,-480.0,0.00022465,2]
[381713509,1756317054669,-480.0,0.00022465,2]
[381713511,1756317054678,-480.0,0.00022465,2]
[381713513,1756317054687,-480.0,0.00022465,2]
[381713515,1756317054696,-480.0,0.00022465,2]
[381713517,1756317054705,-3691.86,0.00022465,2]
[381713519,1756317054714,-151.0,0.00022465,7]
[381713521,1756317054723,-480.0,0.00022465,2]
[381713523,1756317054732,-480.0,0.00022465,2]
[381713525,1756317054741,-1068.18,0.00022465,2]
[381713527,1756317054751,-480.0,0.00022465,2]
[381713529,1756317054760,-980.75,0.00022465,2]
[381713531,1756317054768,-480.0,0.00022465,2]
[381713533,1756317054778,-480.0,0.00022465,2]
[381713535,1756317054787,-480.0,0.00022465,2]
[381713537,1756317054796,-480.0,0.00022465,2]
[381713539,1756317054805,-480.0,0.00022465,2]
[381713541,1756317054814,-480.0,0.00022465,2]
[381713543,1756317054823,-480.0,0.00022465,2]
[381713545,1756317054832,-480.0,0.00022465,2]
[381713547,1756317054841,-152.603382,0.00022465,7]
[381713549,1756317054850,-480.0,0.00022465,2]
[381713551,1756317054859,-796.19,0.00022465,2]
[381713553,1756317054869,-607.08,0.00022465,2]
[381713554,1756317054878,-480.0,0.00022465,2]
[381713556,1756317054888,-845.61,0.00022465,2]
[381713558,1756317054897,-480.0,0.00022465,2]
[381713560,1756317054906,-554.26,0.00022465,2]
[381713562,1756317054916,-480.0,0.00022465,2]
[381713564,1756317054930,-480.0,0.00022465,2]
[381713566,1756317054939,-480.0,0.00022465,2]
[381713568,1756317054949,-480.0,0.00022465,2]
[381713570,1756317054958,-480.0,0.00022465,2]
[381713572,1756317054967,-562.74,0.00022465,2]
[381713574,1756317054977,-1226.97,0.00022465,2]
[381713576,1756317054986,-480.0,0.00022465,2]
[381713578,1756317054996,-480.0,0.00022465,2]
[381713580,1756317055008,-753.67,0.00022465,2]
[381713582,1756317055018,-480.0,0.00022465,2]
[381713584,1756317055027,-633.99,0.00022465,2]
[381713587,1756317055037,-480.0,0.00022465,2]
[381713589,1756317055046,-480.0,0.00022465,2]
[381713591,1756317055055,-480.0,0.00022465,2]
[381713593,1756317055064,-480.0,0.00022465,2]
[381713595,1756317055073,-951.31,0.00022465,2]
[381713597,1756317055084,-503.35,0.00022465,2]
[381713599,1756317055093,-631.86,0.00022465,2]
[381713601,1756317055104,-260.29226006,0.00022465,2]
[381713603,1756317055115,-480.0,0.00022465,2]
[381713605,1756317055125,-480.0,0.00022465,2]
[381713607,1756317055134,-866.53,0.00022465,2]
[381713609,1756317055143,-480.0,0.00022465,2]
[381713611,1756317055153,-480.0,0.00022465,2]
[381713613,1756317055162,-1284.45,0.00022465,2]
[381713615,1756317055171,-1258.13,0.00022465,2]
[381713617,1756317055180,-480.0,0.00022465,2]
[381713619,1756317055189,-151.0,0.00022465,7]
[381713621,1756317055198,-614.39987278,0.00022465,2]
[381713623,1756317055208,-480.0,0.00022465,2]
[381713625,1756317055219,-3967.56,0.00022465,2]
[381713627,1756317055227,-480.0,0.00022465,2]
[381713629,1756317055237,-151.0,0.00022465,7]
[381713631,1756317055247,-2216.97,0.00022465,2]
[381713633,1756317055257,-480.0,0.00022465,2]
[381713635,1756317055266,-961.81,0.00022465,2]
[381713637,1756317055275,-480.0,0.00022465,2]
[381713639,1756317055285,-151.0,0.00022465,7]
[381713641,1756317055294,-480.0,0.00022465,2]
[381713643,1756317055303,-480.0,0.00022465,2]
[381713645,1756317055312,-480.0,0.00022465,2]
[381713647,1756317055322,-480.0,0.00022465,2]
[381713649,1756317055332,-2354.93,0.00022465,2]
[381713651,1756317055341,-480.0,0.00022465,2]
[381713653,1756317055351,-480.0,0.00022465,2]
[381713655,1756317055360,-625.42,0.00022465,2]
[381713657,1756317055370,-480.0,0.00022465,2]
[381713659,1756317055380,-2040.06,0.00022465,2]
[381713661,1756317055390,-480.0,0.00022465,2]
[381713663,1756317055400,-276.60101797,0.00022465,2]
[381713665,1756317055411,-961.15,0.00022465,2]
[381713667,1756317055425,-2251.35,0.00022465,2]
[381713669,1756317055433,-480.0,0.00022465,2]
[381713671,1756317055444,-480.0,0.00022465,2]
[381713673,1756317055458,-500.0,0.00022465,2]
[381713675,1756317055468,-480.0,0.00022465,2]
[381713677,1756317055478,-480.0,0.00022465,2]
[381713679,1756317055488,-480.0,0.00022465,2]
[381713681,1756317055504,-1024.55,0.00022465,2]
[381713683,1756317055514,-480.0,0.00022465,2]
[381713685,1756317055523,-480.0,0.00022465,2]
[381713687,1756317055534,-480.0,0.00022465,2]
[381713689,1756317055543,-480.0,0.00022465,2]
[381713691,1756317055552,-480.0,0.00022465,2]
[381713693,1756317055561,-480.0,0.00022465,2]
[381713695,1756317055572,-598.56,0.00022465,2]
[381713697,1756317055581,-480.0,0.00022465,2]
[381713699,1756317055592,-838.19,0.00022465,2]
[381713701,1756317055605,-480.0,0.00022465,2]
[381713703,1756317055614,-534.84,0.00022465,2]
[381713705,1756317055623,-480.0,0.00022465,2]
[381713707,1756317055633,-598.08,0.00022465,2]
[381713709,1756317055645,-480.0,0.00022465,2]
[381713711,1756317055657,-480.0,0.00022465,2]
[381713713,1756317055667,-580.66,0.00022465,2]
[381713715,1756317055675,-480.0,0.00022465,2]
[381713717,1756317055685,-480.0,0.00022465,2]
[381713719,1756317055694,-480.0,0.00022465,2]
[381713721,1756317055703,-480.0,0.00022465,2]
[381713723,1756317055712,-151.0,0.00022465,7]
[381713725,1756317055721,-1303.97,0.00022465,2]
[381713727,1756317055730,-480.0,0.00022465,2]
[381713729,1756317055739,-531.0,0.00022465,2]
[381713731,1756317055750,-480.0,0.00022465,2]
[381713733,1756317055759,-226.76477656,0.00022465,2]
[381713735,1756317055769,-480.0,0.00022465,2]
[381713737,1756317055778,-678.65,0.00022465,2]
[381713739,1756317055787,-480.0,0.00022465,2]
[381713741,1756317055799,-697.3,0.00022465,2]
[381713743,1756317055809,-229.44675075,0.00022517,8]
[381713745,1756317055818,-504.4385692,0.00022521,2]
[381713747,1756317055827,-500.0,0.00022521,2]
[381713749,1756317055836,-512.56600855,0.00022521,2]
[381713751,1756317055846,-500.0,0.00022521,2]
[381713754,1756317055855,-500.0,0.00022521,2]
[381713755,1756317055864,-500.0,0.00022521,2]
[381713757,1756317055874,-250.0,0.00022521,2]
[381713759,1756317055883,-500.0,0.00022521,2]
[381713761,1756317055892,-741.89941846,0.00022521,2]
[381713763,1756317055902,-500.0,0.00022521,2]
[381713765,1756317055911,-500.0,0.00022521,2]
[381713767,1756317055921,-500.0,0.00022521,2]
[381713769,1756317055932,-1000.0,0.00022521,2]
[381713771,1756317055941,-500.0,0.00022521,2]
[381713773,1756317055951,-2000.88973792,0.000227,5]
[381713775,1756317055960,-500.0,0.00022726,2]
[381713777,1756317055970,-480.0,0.00022739,2]
[381713779,1756317055979,-480.0,0.00022739,2]
[381713781,1756317055988,-480.0,0.00022739,2]
[381713783,1756317055999,-480.0,0.00022739,2]
[381713785,1756317056009,-480.0,0.00022739,2]
[381713787,1756317056018,-480.0,0.00022739,2]
[381713789,1756317056028,-480.0,0.00022739,2]
[381713791,1756317056037,-480.0,0.00022739,2]
[381713793,1756317056046,-480.0,0.00022739,2]
[381713795,1756317056056,-480.0,0.00022739,2]
[381713797,1756317056065,-480.0,0.00022739,2]
[381713799,1756317056075,-480.0,0.00022739,2]
[381713801,1756317056085,-480.0,0.00022739,2]
[381713803,1756317056095,-480.0,0.00022739,2]
[381713805,1756317056105,-480.0,0.00022739,2]
[381713807,1756317056114,-480.0,0.00022739,2]
[381713809,1756317056124,-480.0,0.00022739,2]
[381713812,1756317056136,-480.0,0.00022739,2]
[381713813,1756317056146,-480.0,0.00022739,2]
[381713816,1756317056155,-618.17,0.00022739,2]
[381713818,1756317056166,-480.0,0.00022739,2]
[381713820,1756317056175,-480.0,0.00022739,2]
[381713822,1756317056184,-480.0,0.00022739,2]
[381713824,1756317056194,-529.11,0.00022739,2]
[381713826,1756317056204,-480.0,0.00022739,2]
[381713827,1756317056216,-480.0,0.00022739,2]
[381713829,1756317056225,-555.52,0.00022739,2]
[381713831,1756317056234,-480.0,0.00022739,2]
[381713833,1756317056243,-480.0,0.00022739,2]
[381713835,1756317056252,-480.0,0.00022739,2]
[381713837,1756317056262,-401.20508584,0.00022739,2]
[381713839,1756317056271,-480.0,0.00022739,2]
[381713841,1756317056281,-480.0,0.00022739,2]
[381713843,1756317056290,-480.0,0.00022739,2]
[381713845,1756317056300,-480.0,0.00022739,2]
[381713847,1756317056309,-480.0,0.00022739,2]
[381713849,1756317056319,-480.0,0.00022739,2]
[381713851,1756317056328,-480.0,0.00022739,2]
[381713853,1756317056338,-480.0,0.00022739,2]
[381713855,1756317056348,-480.0,0.00022739,2]
[381713858,1756317056357,-480.0,0.00022739,2]
[381713860,1756317056366,-679.74,0.00022739,2]
[381713862,1756317056377,-480.0,0.00022739,2]
[381713864,1756317056386,-480.0,0.00022739,2]
[381713866,1756317056395,-480.0,0.00022739,2]
[381713868,1756317056405,-480.0,0.00022739,2]
[381713870,1756317056414,-480.0,0.00022739,2]
[381713872,1756317056423,-480.0,0.00022739,2]
[381713874,1756317056432,-888.74,0.00022739,2]
[381713876,1756317056441,-480.0,0.00022739,2]
[381713878,1756317056449,-480.0,0.00022739,2]
[381713880,1756317056458,-1044.32,0.00022739,2]
[381713882,1756317056468,-480.0,0.00022739,2]
[381713884,1756317056477,-480.0,0.00022739,2]
[381713886,1756317056486,-748.22,0.00022739,2]
[381713888,1756317056495,-480.0,0.00022739,2]
[381713890,1756317056504,-480.0,0.00022739,2]
[381713892,1756317056513,-480.0,0.00022739,2]
[381713894,1756317056523,-480.0,0.00022739,2]
[381713896,1756317056532,-480.0,0.00022739,2]
[381713898,1756317056541,-480.0,0.00022739,2]
[381713900,1756317056550,-480.0,0.00022739,2]
[381713902,1756317056560,-480.0,0.00022739,2]
[381713904,1756317056570,-503.04,0.00022739,2]
[381713906,1756317056579,-480.0,0.00022739,2]
[381713908,1756317056589,-559.96,0.00022739,2]
[381713910,1756317056598,-480.0,0.00022739,2]
[381713912,1756317056607,-480.0,0.00022739,2]
[381713914,1756317056616,-480.0,0.00022739,2]
[381713916,1756317056625,-480.0,0.00022739,2]
[381713918,1756317056635,-480.0,0.00022739,2]
[381713920,1756317056644,-480.0,0.00022739,2]
[381713922,1756317056654,-480.0,0.00022739,2]
[381713924,1756317056663,-480.0,0.00022739,2]
[381713926,1756317056672,-480.0,0.00022739,2]
[381713928,1756317056681,-480.0,0.00022739,2]
[381713930,1756317056692,-480.0,0.00022739,2]
[381713932,1756317056702,-480.0,0.00022739,2]
[381713934,1756317056712,-480.0,0.00022739,2]
[381713936,1756317056722,-204.20208123,0.00022739,2]
[381713938,1756317056732,-480.0,0.00022739,2]
[381713940,1756317056741,-480.0,0.00022739,2]
[381713942,1756317056750,-480.0,0.00022739,2]
[381713944,1756317056759,-548.2,0.00022739,2]
[381713946,1756317056768,-480.0,0.00022739,2]
[381713948,1756317056777,-490.49,0.00022739,2]
[381713950,1756317056786,-480.0,0.00022739,2]
[381713952,1756317056795,-480.0,0.00022739,2]
[381713954,1756317056806,-150.28604451,0.00022739,2]
[381713956,1756317056815,-480.0,0.00022739,2]
[381713958,1756317056823,-552.55,0.00022739,2]
[381713960,1756317056833,-480.0,0.00022739,2]
[381713962,1756317056842,-480.0,0.00022739,2]
[381713964,1756317056851,-695.04,0.00022739,2]
[381713966,1756317056860,-480.0,0.00022739,2]
[381713968,1756317056870,-498.94,0.00022739,2]
[381713970,1756317056879,-5052.09,0.00022739,2]
[381713972,1756317056888,-480.0,0.00022739,2]
[381713974,1756317056898,-480.0,0.00022739,2]
[381713976,1756317056907,-480.0,0.00022739,2]
[381713978,1756317056917,-480.0,0.00022739,2]
[381713980,1756317056930,-152.25468,0.00022739,7]
[381713982,1756317056939,-785.3,0.00022739,2]
[381713984,1756317056949,-503.1,0.00022739,2]
[381713986,1756317056958,-480.0,0.00022739,2]
[381713987,1756317056967,-217.89953692,0.00022739,2]
[381713989,1756317056976,-717.29,0.00022739,2]
[381713991,1756317056985,-480.0,0.00022739,2]